Workbook

Sheet Sheet1
A1: Timing | J1: 1 | K1: 2 | L1: 3 | M1: 4 | N1: 5 | O1: 6 | P1: 7 | Q1: 8 | R1: 9 | S1: 10 | T1: 11 | U1: 12 | V1: 13 | W1: 14 | X1: 15 | Y1: 16 | Z1: 17 | AA1: 18 | AB1: 19 | AC1: 20 | AD1: 21 | AE1: 22 | AF1: 23 | AG1: 24 | AH1: 25
B2: Date | F2: Equity IRR | G2: =J177 -> 0.08165576436 | J2: =F8 -> 2019-01-01 | K2: =EDATE(J2,12) -> 2020-01-01 | L2: =EDATE(K2,12) -> 2021-01-01 | M2: 2022-01-01 | N2: 2023-01-01 | O2: 2024-01-01 | P2: 2025-01-01 | Q2: 2026-01-01 | R2: 2027-01-01 | S2: 2028-01-01 | T2: 2029-01-01 | U2: 2030-01-01 | V2: 2031-01-01 | W2: 2032-01-01 | X2: 2033-01-01 | Y2: 2034-01-01 | Z2: 2035-01-01 | AA2: 2036-01-01 | AB2: 2037-01-01 | AC2: 2038-01-01 | AD2: 2039-01-01 | AE2: 2040-01-01 | AF2: 2041-01-01 | AG2: 2042-01-01 | AH2: 2043-01-01
B3: Construction | G3: =F8 -> 2019-01-01 | H3: =F10 -> 2022-01-01 | J3: =J2<$H$3 -> TRUE | K3: =K2<$H$3 -> TRUE | L3: TRUE | M3: FALSE | N3: FALSE | O3: FALSE | P3: FALSE | Q3: FALSE | R3: FALSE | S3: FALSE | T3: FALSE | U3: FALSE | V3: FALSE | W3: FALSE | X3: FALSE | Y3: FALSE | Z3: FALSE | AA3: FALSE | AB3: FALSE | AC3: FALSE | AD3: FALSE | AE3: FALSE | AF3: FALSE | AG3: FALSE | AH3: FALSE
B4: Operation | G4: =F10 -> 2022-01-01 | H4: =F12 -> 2032-01-01 | J4: =AND(NOT(J3),J2<$H$4) -> FALSE | K4: =AND(NOT(K3),K2<$H$4) -> FALSE | L4: FALSE | M4: TRUE | N4: TRUE | O4: TRUE | P4: TRUE | Q4: TRUE | R4: TRUE | S4: TRUE | T4: TRUE | U4: TRUE | V4: TRUE | W4: FALSE | X4: FALSE | Y4: FALSE | Z4: FALSE | AA4: FALSE | AB4: FALSE | AC4: FALSE | AD4: FALSE | AE4: FALSE | AF4: FALSE | AG4: FALSE | AH4: FALSE
A6: Assumptions
B7: Timing
C8: FC | E8: Date | F8: 2019-01-01
C9: Construction | E9: Years | F9: 3
C10: COD | E10: Date | F10: =EDATE(F8,F9*12) -> 2022-01-01
C11: Operations | E11: Years | F11: 10
C12: Decommissioning | E12: Date | F12: =EDATE(F10,F11*12) -> 2032-01-01
B14: Operating | G14: 0 | H14: 1 | I14: 5 | J14: 12
C15: EBITDA P50 | E15: Euro | F15: TRUE | H15: 100 | I15: 120 | J15: 80
C16: EBITDA P99 | E16: Euro | F16: =NOT(F15) -> FALSE | H16: 70 | I16: 80 | J16: 65
C17: Applied | H17: =H15*$F15+H16*$F16 -> 100 | I17: =I15*$F15+I16*$F16 -> 120 | J17: =J15*$F15+J16*$F16 -> 80
C19: Capital Expenditure | E19: Euro | F19: 700
C21: Tax Rate | E21: Percent | F21: 0.21
B23: Financing
C24: DSCR - P50 | E24: Times | F24: 1.35
C25: DSCR - P99 | E25: Times | F25: 1
C26: DSCR Applied | F26: =F24*F15+F25*F16 -> 1.35
C28: Up-Front Equity | E28: Percent | F28: 0.4
C30: Tenor | E30: Years | F30: 8
F31: 1 | G31: 4 | H31: 7 | I31: 11
C32: Interest Rate | F32: 0.035 | G32: 0.04 | H32: 0.042 | I32: 0.044
C34: DSRA Percent | E34: Percent | F34: 0.5
A36: Operations
B37: Project Age | J37: =I37+J4 -> 0 | K37: =J37+K4 -> 0 | L37: 0 | M37: 1 | N37: 2 | O37: 3 | P37: 4 | Q37: 5 | R37: 6 | S37: 7 | T37: 8 | U37: 9 | V37: 10 | W37: 10 | X37: 10 | Y37: 10 | Z37: 10 | AA37: 10 | AB37: 10 | AC37: 10 | AD37: 10 | AE37: 10 | AF37: 10 | AG37: 10 | AH37: 10
B38: EBITDA | J38: =interpolate_look_up(J37,14:14,17:17)*J4 -> 0 | K38: =interpolate_look_up(K37,14:14,17:17)*K4 -> 0 | L38: 0 | M38: =interpolate_look_up(M37,14:14,17:17)*M4 -> 100 | N38: 104.6635139 | O38: 109.5445115 | P38: 114.6531351 | Q38: 120 | R38: 113.2466469 | S38: 106.8733586 | T38: 100.8587459 | U38: 95.18262316 | V38: 89.82594096 | W38: 0 | X38: 0 | Y38: 0 | Z38: 0 | AA38: 0 | AB38: 0 | AC38: 0 | AD38: 0 | AE38: 0 | AF38: 0 | AG38: 0 | AH38: 0
B39: Capital Expenditures | F39: =F19 -> 700 | G39: =1/F9 -> 0.3333333333 | J39: =$F39*$G39*J3 -> 233.3333333 | K39: 233.3333333 | L39: 233.3333333 | M39: 0 | N39: 0 | O39: 0 | P39: 0 | Q39: 0 | R39: 0 | S39: 0 | T39: 0 | U39: 0 | V39: 0 | W39: 0 | X39: 0 | Y39: 0 | Z39: 0 | AA39: 0 | AB39: 0 | AC39: 0 | AD39: 0 | AE39: 0 | AF39: 0 | AG39: 0 | AH39: 0
B40: Pre-tax Project IRR | F40: =IRR(J40:AH40) -> 0.06887287697 | J40: =J38-J39 -> -233.3333333 | K40: =K38-K39 -> -233.3333333 | L40: -233.3333333 | M40: 100 | N40: 104.6635139 | O40: 109.5445115 | P40: 114.6531351 | Q40: 120 | R40: 113.2466469 | S40: 106.8733586 | T40: 100.8587459 | U40: 95.18262316 | V40: 89.82594096 | W40: 0 | X40: 0 | Y40: 0 | Z40: 0 | AA40: 0 | AB40: 0 | AC40: 0 | AD40: 0 | AE40: 0 | AF40: 0 | AG40: 0 | AH40: 0
B42: Accumulated Plant | J42: =I42+J39 -> 233.3333333 | K42: =J42+K39 -> 466.6666667 | L42: 700 | M42: 700 | N42: 700 | O42: 700 | P42: 700 | Q42: 700 | R42: 700 | S42: 700 | T42: 700 | U42: 700 | V42: 700 | W42: 700 | X42: 700 | Y42: 700 | Z42: 700 | AA42: 700 | AB42: 700 | AC42: 700 | AD42: 700 | AE42: 700 | AF42: 700 | AG42: 700 | AH42: 700
B43: Accumulated Depreciation | J43: =I43+J45 -> 0 | K43: =J43+K45 -> 0 | L43: 0 | M43: 70 | N43: 140 | O43: 210 | P43: 280 | Q43: 350 | R43: 420 | S43: 490 | T43: 560 | U43: 630 | V43: 700 | W43: 700 | X43: 700 | Y43: 700 | Z43: 700 | AA43: 700 | AB43: 700 | AC43: 700 | AD43: 700 | AE43: 700 | AF43: 700 | AG43: 700 | AH43: 700
B44: Net Plant | J44: =J42-J43 -> 233.3333333 | K44: =K42-K43 -> 466.6666667 | L44: 700 | M44: 630 | N44: 560 | O44: 490 | P44: 420 | Q44: 350 | R44: 280 | S44: 210 | T44: 140 | U44: 70 | V44: 0 | W44: 0 | X44: 0 | Y44: 0 | Z44: 0 | AA44: 0 | AB44: 0 | AC44: 0 | AD44: 0 | AE44: 0 | AF44: 0 | AG44: 0 | AH44: 0
B45: Depreciation | F45: =1/F11 -> 0.1 | J45: =$F$45*J42*J4 -> 0 | K45: =$F$45*K42*K4 -> 0 | L45: 0 | M45: 70 | N45: 70 | O45: 70 | P45: 70 | Q45: 70 | R45: 70 | S45: 70 | T45: 70 | U45: 70 | V45: 70 | W45: 0 | X45: 0 | Y45: 0 | Z45: 0 | AA45: 0 | AB45: 0 | AC45: 0 | AD45: 0 | AE45: 0 | AF45: 0 | AG45: 0 | AH45: 0
B46: EBIT | J46: =J38-J45 -> 0 | K46: =K38-K45 -> 0 | L46: 0 | M46: 30 | N46: 34.66351394 | O46: 39.5445115 | P46: 44.65313506 | Q46: 50 | R46: 43.24664689 | S46: 36.8733586 | T46: 30.85874587 | U46: 25.18262316 | V46: 19.82594096 | W46: 0 | X46: 0 | Y46: 0 | Z46: 0 | AA46: 0 | AB46: 0 | AC46: 0 | AD46: 0 | AE46: 0 | AF46: 0 | AG46: 0 | AH46: 0
B47: Taxes on EBIT | F47: =F21 -> 0.21 | J47: =J46*$F$47 -> 0 | K47: =K46*$F$47 -> 0 | L47: 0 | M47: 6.3 | N47: 7.279337927 | O47: 8.304347415 | P47: 9.377158364 | Q47: 10.5 | R47: 9.081795847 | S47: 7.743405307 | T47: 6.480336632 | U47: 5.288350863 | V47: 4.163447601 | W47: 0 | X47: 0 | Y47: 0 | Z47: 0 | AA47: 0 | AB47: 0 | AC47: 0 | AD47: 0 | AE47: 0 | AF47: 0 | AG47: 0 | AH47: 0
B48: Post-tax Project IRR | F48: =IRR(J48:AH48) -> 0.05569594689 | J48: =J40-J47 -> -233.3333333 | K48: =K40-K47 -> -233.3333333 | L48: -233.3333333 | M48: 93.7 | N48: 97.38417601 | O48: 101.2401641 | P48: 105.2759767 | Q48: 109.5 | R48: 104.164851 | S48: 99.1299533 | T48: 94.37840923 | U48: 89.8942723 | V48: 85.66249336 | W48: 0 | X48: 0 | Y48: 0 | Z48: 0 | AA48: 0 | AB48: 0 | AC48: 0 | AD48: 0 | AE48: 0 | AF48: 0 | AG48: 0 | AH48: 0
A50: Sources and Uses
B51: Uses
C52: Capital Expenditures | I52: =SUM(J39:AH39) -> 700
C53: IDC | I53: =SUM(J78:AH78) -> 15.13182966
C54: DSRA | I54: =SUM(J79:AH79) -> 37.03703704
D55: Total | I55: =SUM(I52:I54) -> 752.1688667
B57: Sources
C58: Debt | I58: =F75 -> 539.8578739 | J58: =I58/I60 -> 0.7177349367
C59: Equity | I59: =I55-I58 -> 212.3109928
D60: Total | I60: =SUM(I58:I59) -> 752.1688667
C62: Equity Up-front | F62: =F28 -> 0.4 | I62: =F62*I59 -> 84.92439711 | J62: =_xlfn.FORMULATEXT(I62) -> =F62*I59
C63: Remaining Equity Pro-Rata | I63: =I59-I62 -> 127.3865957 | J63: =_xlfn.FORMULATEXT(I63) -> =I59-I62
C64: Total Left Over for Pro-Rata | I64: =I60-I62 -> 667.2444696 | J64: =I60-I62
C65: Equity as Percent of Left Over Pro-Rata | I65: =I63/I64 -> 0.1909144271 | J65: =I63/I64
C66: Debt as Percent of Left Over Pro-Rata | I66: =I58/I64 -> 0.8090855729 | J66: =I58/I64
A68: Sculpting
C69: Debt Repayment Switch | F69: =F30 -> 8 | J69: =AND(J4,J37<=$F$69) -> FALSE | K69: =AND(K4,K37<=$F$69) -> FALSE | L69: FALSE | M69: TRUE | N69: TRUE | O69: TRUE | P69: TRUE | Q69: TRUE | R69: TRUE | S69: TRUE | T69: TRUE | U69: FALSE | V69: FALSE | W69: FALSE | X69: FALSE | Y69: FALSE | Z69: FALSE | AA69: FALSE | AB69: FALSE | AC69: FALSE | AD69: FALSE | AE69: FALSE | AF69: FALSE | AG69: FALSE | AH69: FALSE
C70: CFADS | J70: =J38*J69 -> 0 | K70: =K38*K69 -> 0 | L70: 0 | M70: 100 | N70: 104.6635139 | O70: 109.5445115 | P70: 114.6531351 | Q70: 120 | R70: 113.2466469 | S70: 106.8733586 | T70: 100.8587459 | U70: 0 | V70: 0 | W70: 0 | X70: 0 | Y70: 0 | Z70: 0 | AA70: 0 | AB70: 0 | AC70: 0 | AD70: 0 | AE70: 0 | AF70: 0 | AG70: 0 | AH70: 0
C71: Target DSCR | F71: =F26 -> 1.35 | J71: =$F$71 -> 1.35 | K71: =$F$71 -> 1.35 | L71: 1.35 | M71: 1.35 | N71: 1.35 | O71: 1.35 | P71: 1.35 | Q71: 1.35 | R71: 1.35 | S71: 1.35 | T71: 1.35 | U71: 1.35 | V71: 1.35 | W71: 1.35 | X71: 1.35 | Y71: 1.35 | Z71: 1.35 | AA71: 1.35 | AB71: 1.35 | AC71: 1.35 | AD71: 1.35 | AE71: 1.35 | AF71: 1.35 | AG71: 1.35 | AH71: 1.35
C72: Total Debt Service | J72: =J70/J71 -> 0 | K72: =K70/K71 -> 0 | L72: 0 | M72: 74.07407407 | N72: 77.52852884 | O72: 81.14408259 | P72: 84.9282482 | Q72: 88.88888889 | R72: 83.88640511 | S72: 79.16545082 | T72: 74.71018212 | U72: 0 | V72: 0 | W72: 0 | X72: 0 | Y72: 0 | Z72: 0 | AA72: 0 | AB72: 0 | AC72: 0 | AD72: 0 | AE72: 0 | AF72: 0 | AG72: 0 | AH72: 0
C73: Interest Rate | J73: =LOOKUP(J1,31:31,32:32) -> 0.035 | K73: =LOOKUP(K1,31:31,32:32) -> 0.035 | L73: 0.035 | M73: 0.04 | N73: 0.04 | O73: 0.04 | P73: 0.042 | Q73: 0.042 | R73: 0.042 | S73: 0.042 | T73: 0.044 | U73: 0.044 | V73: 0.044 | W73: 0.044 | X73: 0.044 | Y73: 0.044 | Z73: 0.044 | AA73: 0.044 | AB73: 0.044 | AC73: 0.044 | AD73: 0.044 | AE73: 0.044 | AF73: 0.044 | AG73: 0.044 | AH73: 0.044
C74: Interest Rate Index | I74: 1 | J74: =I74*(1+J73*J4) -> 1 | K74: =J74*(1+K73*K4) -> 1 | L74: =K74*(1+L73*L4) -> 1 | M74: =L74*(1+M73*M4) -> 1.04 | N74: 1.0816 | O74: 1.124864 | P74: 1.172108288 | Q74: 1.221336836 | R74: 1.272632983 | S74: 1.326083569 | T74: 1.384431246 | U74: 1.44534622 | V74: 1.508941454 | W74: 1.508941454 | X74: 1.508941454 | Y74: 1.508941454 | Z74: 1.508941454 | AA74: 1.508941454 | AB74: 1.508941454 | AC74: 1.508941454 | AD74: 1.508941454 | AE74: 1.508941454 | AF74: 1.508941454 | AG74: 1.508941454 | AH74: 1.508941454
C75: PV of Debt Service | F75: =SUMPRODUCT(J72:AH72/J74:AH74) -> 539.8578739 | G75: =_xlfn.FORMULATEXT(F75) -> =SUMPRODUCT(J72:AH72/J74:AH74)
A76: Funding
C77: EPC Cap Exp | J77: =J39 -> 233.3333333 | K77: =K39 -> 233.3333333 | L77: 233.3333333 | M77: 0 | N77: 0 | O77: 0 | P77: 0 | Q77: 0 | R77: 0 | S77: 0 | T77: 0 | U77: 0 | V77: 0 | W77: 0 | X77: 0 | Y77: 0 | Z77: 0 | AA77: 0 | AB77: 0 | AC77: 0 | AD77: 0 | AE77: 0 | AF77: 0 | AG77: 0 | AH77: 0
C78: IDC | J78: =J110 -> 0 | K78: =K110 -> 4.202643522 | L78: 10.92918614 | M78: 0 | N78: 0 | O78: 0 | P78: 0 | Q78: 0 | R78: 0 | S78: 0 | T78: 0 | U78: 0 | V78: 0 | W78: 0 | X78: 0 | Y78: 0 | Z78: 0 | AA78: 0 | AB78: 0 | AC78: 0 | AD78: 0 | AE78: 0 | AF78: 0 | AG78: 0 | AH78: 0
C79: DSRA | J79: =J119 -> 0 | K79: =K119 -> 0 | L79: 37.03703704 | M79: 0 | N79: 0 | O79: 0 | P79: 0 | Q79: 0 | R79: 0 | S79: 0 | T79: 0 | U79: 0 | V79: 0 | W79: 0 | X79: 0 | Y79: 0 | Z79: 0 | AA79: 0 | AB79: 0 | AC79: 0 | AD79: 0 | AE79: 0 | AF79: 0 | AG79: 0 | AH79: 0
D80: Total | J80: =SUM(J77:J79) -> 233.3333333 | K80: =SUM(K77:K79) -> 237.5359769 | L80: 281.2995565 | M80: 0 | N80: 0 | O80: 0 | P80: 0 | Q80: 0 | R80: 0 | S80: 0 | T80: 0 | U80: 0 | V80: 0 | W80: 0 | X80: 0 | Y80: 0 | Z80: 0 | AA80: 0 | AB80: 0 | AC80: 0 | AD80: 0 | AE80: 0 | AF80: 0 | AG80: 0 | AH80: 0
C82: Equity Up-Front | F82: =I62 -> 84.92439711 | J82: =$F$82 -> 84.92439711 | K82: =$F$82 -> 84.92439711 | L82: 84.92439711 | M82: 84.92439711 | N82: 84.92439711 | O82: 84.92439711 | P82: 84.92439711 | Q82: 84.92439711 | R82: 84.92439711 | S82: 84.92439711 | T82: 84.92439711 | U82: 84.92439711 | V82: 84.92439711 | W82: 84.92439711 | X82: 84.92439711 | Y82: 84.92439711 | Z82: 84.92439711 | AA82: 84.92439711 | AB82: 84.92439711 | AC82: 84.92439711 | AD82: 84.92439711 | AE82: 84.92439711 | AF82: 84.92439711 | AG82: 84.92439711 | AH82: 84.92439711
C83: Less: Opening Balance | J83: =J86 -> 0 | K83: =K86 -> 84.92439711 | L83: 84.92439711 | M83: 84.92439711 | N83: 84.92439711 | O83: 84.92439711 | P83: 84.92439711 | Q83: 84.92439711 | R83: 84.92439711 | S83: 84.92439711 | T83: 84.92439711 | U83: 84.92439711 | V83: 84.92439711 | W83: 84.92439711 | X83: 84.92439711 | Y83: 84.92439711 | Z83: 84.92439711 | AA83: 84.92439711 | AB83: 84.92439711 | AC83: 84.92439711 | AD83: 84.92439711 | AE83: 84.92439711 | AF83: 84.92439711 | AG83: 84.92439711 | AH83: 84.92439711
C84: Remaining Equity Funding | J84: =J82-J83 -> 84.92439711 | K84: =K82-K83 -> 0 | L84: 0 | M84: 0 | N84: 0 | O84: 0 | P84: 0 | Q84: 0 | R84: 0 | S84: 0 | T84: 0 | U84: 0 | V84: 0 | W84: 0 | X84: 0 | Y84: 0 | Z84: 0 | AA84: 0 | AB84: 0 | AC84: 0 | AD84: 1.122657523e-11 | AE84: -6.394884622e-13 | AF84: 3.100808499e-11 | AG84: -1.577404873e-12 | AH84: 6.038192168e-11
C86: Opening Balance | J86: =I88 -> 0 | K86: =J88 -> 84.92439711 | L86: 84.92439711 | M86: 84.92439711 | N86: 84.92439711 | O86: 84.92439711 | P86: 84.92439711 | Q86: 84.92439711 | R86: 84.92439711 | S86: 84.92439711 | T86: 84.92439711 | U86: 84.92439711 | V86: 84.92439711 | W86: 84.92439711 | X86: 84.92439711 | Y86: 84.92439711 | Z86: 84.92439711 | AA86: 84.92439711 | AB86: 84.92439711 | AC86: 84.92439711 | AD86: 84.92439711 | AE86: 84.92439711 | AF86: 84.92439711 | AG86: 84.92439711 | AH86: 84.92439711
C87: Add: Equity Funding | J87: =MIN(J84,J80) -> 84.92439711 | K87: =MIN(K84,K80) -> 0 | L87: =MIN(L84,L80) -> 0 | M87: 0 | N87: 0 | O87: 0 | P87: 0 | Q87: 0 | R87: 0 | S87: 0 | T87: 0 | U87: 0 | V87: 0 | W87: 0 | X87: 0 | Y87: 0 | Z87: 0 | AA87: 0 | AB87: 0 | AC87: 0 | AD87: 0 | AE87: -6.394884622e-13 | AF87: 0 | AG87: -1.577404873e-12 | AH87: 0
C88: Closing Balance | J88: =SUM(J86:J87) -> 84.92439711 | K88: =SUM(K86:K87) -> 84.92439711 | L88: 84.92439711 | M88: 84.92439711 | N88: 84.92439711 | O88: 84.92439711 | P88: 84.92439711 | Q88: 84.92439711 | R88: 84.92439711 | S88: 84.92439711 | T88: 84.92439711 | U88: 84.92439711 | V88: 84.92439711 | W88: 84.92439711 | X88: 84.92439711 | Y88: 84.92439711 | Z88: 84.92439711 | AA88: 84.92439711 | AB88: 84.92439711 | AC88: 84.92439711 | AD88: 84.92439711 | AE88: 84.92439711 | AF88: 84.92439711 | AG88: 84.92439711 | AH88: 84.92439711
C90: Left-Over for Pro-Rata | G90: =SUM(J90:AH90) -> 667.2444696 | J90: =J80-J87 -> 148.4089362 | K90: =K80-K87 -> 237.5359769 | L90: 281.2995565 | M90: 0 | N90: 0 | O90: 0 | P90: 0 | Q90: 0 | R90: 0 | S90: 0 | T90: 0 | U90: 0 | V90: 0 | W90: 0 | X90: 0 | Y90: 0 | Z90: 0 | AA90: 0 | AB90: 0 | AC90: 0 | AD90: 0 | AE90: 6.394884622e-13 | AF90: 0 | AG90: 1.577404873e-12 | AH90: 0
C92: Pro-Rata Equity | F92: =I65 -> 0.1909144271 | J92: =J$90*$F92 -> 28.33340704 | K92: =K$90*$F92 -> 45.34904494 | L92: 53.70414368 | M92: 0 | N92: 0 | O92: 0 | P92: 0 | Q92: 0 | R92: 0 | S92: 0 | T92: 0 | U92: 0 | V92: 0 | W92: 0 | X92: 0 | Y92: 0 | Z92: 0 | AA92: 0 | AB92: 0 | AC92: 0 | AD92: 0 | AE92: 1.220875734e-13 | AF92: 0 | AG92: 3.011493477e-13 | AH92: 0
C93: Pro-Rata Debt | F93: =I66 -> 0.8090855729 | G93: =SUM(J93:AH93) -> 539.8578739 | J93: =J$90*$F93 -> 120.0755292 | K93: 192.1869319 | L93: 227.5954128 | M93: 0 | N93: 0 | O93: 0 | P93: 0 | Q93: 0 | R93: 0 | S93: 0 | T93: 0 | U93: 0 | V93: 0 | W93: 0 | X93: 0 | Y93: 0 | Z93: 0 | AA93: 0 | AB93: 0 | AC93: 0 | AD93: 0 | AE93: 5.174008888e-13 | AF93: 0 | AG93: 1.276255526e-12 | AH93: 0
B95: Period by Period Sources
C96: Debt Funding | J96: =J93 -> 120.0755292 | K96: =K93 -> 192.1869319 | L96: 227.5954128 | M96: 0 | N96: 0 | O96: 0 | P96: 0 | Q96: 0 | R96: 0 | S96: 0 | T96: 0 | U96: 0 | V96: 0 | W96: 0 | X96: 0 | Y96: 0 | Z96: 0 | AA96: 0 | AB96: 0 | AC96: 0 | AD96: 0 | AE96: 5.174008888e-13 | AF96: 0 | AG96: 1.276255526e-12 | AH96: 0
C97: Equity Funding | J97: =J92+J87 -> 113.2578041 | K97: =K92+K87 -> 45.34904494 | L97: 53.70414368 | M97: 0 | N97: 0 | O97: 0 | P97: 0 | Q97: 0 | R97: 0 | S97: 0 | T97: 0 | U97: 0 | V97: 0 | W97: 0 | X97: 0 | Y97: 0 | Z97: 0 | AA97: 0 | AB97: 0 | AC97: 0 | AD97: 0 | AE97: -5.174008888e-13 | AF97: 0 | AG97: -1.276255526e-12 | AH97: 0
D98: Total Funding | J98: =SUM(J96:J97) -> 233.3333333 | K98: =SUM(K96:K97) -> 237.5359769 | L98: 281.2995565 | M98: 0 | N98: 0 | O98: 0 | P98: 0 | Q98: 0 | R98: 0 | S98: 0 | T98: 0 | U98: 0 | V98: 0 | W98: 0 | X98: 0 | Y98: 0 | Z98: 0 | AA98: 0 | AB98: 0 | AC98: 0 | AD98: 0 | AE98: 0 | AF98: 0 | AG98: 0 | AH98: 0
A101: Debt Balance
C102: Opening Balance | J102: =I105 -> 0 | K102: =J105 -> 120.0755292 | L102: 312.2624611 | M102: 539.8578739 | N102: 487.3781148 | O102: 429.3447106 | P102: 365.3744164 | Q102: 295.7918937 | R102: 219.3262643 | S102: 144.6515623 | T102: 71.56147713 | U102: -3.126388037e-13 | V102: -3.263949111e-13 | W102: -3.407562872e-13 | X102: -3.407562872e-13 | Y102: -3.407562872e-13 | Z102: -3.40728775e-13 | AA102: -3.392856343e-13 | AB102: -3.150278189e-13 | AC102: -1.495675406e-13 | AD102: 8.626185126e-13 | AE102: 9.477215312e-12 | AF102: 2.035341224e-12 | AG102: 2.632182167e-11 | AH102: 3.43036439e-12
C103: Add: Funding | J103: =J96 -> 120.0755292 | K103: =K96 -> 192.1869319 | L103: 227.5954128 | M103: 0 | N103: 0 | O103: 0 | P103: 0 | Q103: 0 | R103: 0 | S103: 0 | T103: 0 | U103: 0 | V103: 0 | W103: 0 | X103: 0 | Y103: 0 | Z103: 0 | AA103: 0 | AB103: 0 | AC103: 0 | AD103: 0 | AE103: 5.174008888e-13 | AF103: 0 | AG103: 1.276255526e-12 | AH103: 0
C104: Less: Repayment | J104: =J72-J109 -> 0 | K104: =K72-K109 -> 0 | L104: 0 | M104: 52.47975912 | N104: 58.03340425 | O104: 63.97029417 | P104: 69.58252271 | Q104: 76.46562935 | R104: 74.674702 | S104: 73.0900852 | T104: 71.56147713 | U104: 1.375610736e-14 | V104: 1.436137609e-14 | W104: 0 | X104: 0 | Y104: 0 | Z104: 0 | AA104: 0 | AB104: 0 | AC104: 0 | AD104: 0 | AE104: 0 | AF104: 0 | AG104: 0 | AH104: 0
C105: Closing Balance | J105: =J102+J103-J104 -> 120.0755292 | K105: =K102+K103-K104 -> 312.2624611 | L105: 539.8578739 | M105: 487.3781148 | N105: 429.3447106 | O105: 365.3744164 | P105: 295.7918937 | Q105: 219.3262643 | R105: 144.6515623 | S105: 71.56147713 | T105: -3.126388037e-13 | U105: -3.263949111e-13 | V105: -3.407562872e-13 | W105: -3.407562872e-13 | X105: -3.407562872e-13 | Y105: -3.407562872e-13 | Z105: -3.40728775e-13 | AA105: -3.392856343e-13 | AB105: -3.150278189e-13 | AC105: -1.495675406e-13 | AD105: 8.626185126e-13 | AE105: 9.994616201e-12 | AF105: 2.035341224e-12 | AG105: 2.759807719e-11 | AH105: 3.43036439e-12
C106: Interest Rate | J106: =LOOKUP(J1,31:31,32:32) -> 0.035 | K106: =LOOKUP(K1,31:31,32:32) -> 0.035 | L106: 0.035 | M106: 0.04 | N106: 0.04 | O106: 0.04 | P106: 0.042 | Q106: 0.042 | R106: 0.042 | S106: 0.042 | T106: 0.044 | U106: 0.044 | V106: 0.044 | W106: 0.044 | X106: 0.044 | Y106: 0.044 | Z106: 0.044 | AA106: 0.044 | AB106: 0.044 | AC106: 0.044 | AD106: 0.044 | AE106: 0.044 | AF106: 0.044 | AG106: 0.044 | AH106: 0.044
C108: Interest Cost | J108: =J106*J102 -> 0 | K108: =K106*K102 -> 4.202643522 | L108: 10.92918614 | M108: 21.59431496 | N108: 19.49512459 | O108: 17.17378842 | P108: 15.34572549 | Q108: 12.42325953 | R108: 9.211703102 | S108: 6.075365618 | T108: 3.148704994 | U108: -1.375610736e-14 | V108: -1.436137609e-14 | W108: -1.499327664e-14 | X108: -1.499327664e-14 | Y108: -1.499327664e-14 | Z108: -1.49920661e-14 | AA108: -1.492856791e-14 | AB108: -1.386122403e-14 | AC108: -6.580971785e-15 | AD108: 3.795521455e-14 | AE108: 4.169974737e-13 | AF108: 8.955501388e-14 | AG108: 1.158160153e-12 | AH108: 1.509360332e-13
C109: Interest Expense | J109: =J108*J4 -> 0 | K109: =K108*K4 -> 0 | L109: 0 | M109: 21.59431496 | N109: 19.49512459 | O109: 17.17378842 | P109: 15.34572549 | Q109: 12.42325953 | R109: 9.211703102 | S109: 6.075365618 | T109: 3.148704994 | U109: -1.375610736e-14 | V109: -1.436137609e-14 | W109: 0 | X109: 0 | Y109: 0 | Z109: 0 | AA109: 0 | AB109: 0 | AC109: 0 | AD109: 0 | AE109: 0 | AF109: 0 | AG109: 0 | AH109: 0
C110: Interest During Construction | J110: =J108*J3 -> 0 | K110: =K108*K3 -> 4.202643522 | L110: 10.92918614 | M110: 0 | N110: 0 | O110: 0 | P110: 0 | Q110: 0 | R110: 0 | S110: 0 | T110: 0 | U110: 0 | V110: 0 | W110: 0 | X110: 0 | Y110: 0 | Z110: 0 | AA110: 0 | AB110: 0 | AC110: 0 | AD110: 0 | AE110: 0 | AF110: 0 | AG110: 0 | AH110: 0
A112: DSRA
B113: Debt Service | J113: =J109+J104 -> 0 | K113: =K109+K104 -> 0 | L113: 0 | M113: 74.07407407 | N113: 77.52852884 | O113: 81.14408259 | P113: 84.9282482 | Q113: 88.88888889 | R113: 83.88640511 | S113: 79.16545082 | T113: 74.71018212 | U113: 0 | V113: 0 | W113: 0 | X113: 0 | Y113: 0 | Z113: 0 | AA113: 0 | AB113: 0 | AC113: 0 | AD113: 0 | AE113: 0 | AF113: 0 | AG113: 0 | AH113: 0
B114: Required DSRA | F114: =F34 -> 0.5 | J114: =K113*$F$114 -> 0 | K114: =L113*$F$114 -> 0 | L114: 37.03703704 | M114: =N113*$F$114 -> 38.76426442 | N114: =O113*$F$114 -> 40.5720413 | O114: 42.4641241 | P114: 44.44444444 | Q114: 41.94320255 | R114: 39.58272541 | S114: 37.35509106 | T114: 0 | U114: 0 | V114: 0 | W114: 0 | X114: 0 | Y114: 0 | Z114: 0 | AA114: 0 | AB114: 0 | AC114: 0 | AD114: 0 | AE114: 0 | AF114: 0 | AG114: 0 | AH114: 0
B115: Less: Opening DSRA Balance | J115: =J118 -> 0 | K115: =K118 -> 0 | L115: 0 | M115: 37.03703704 | N115: 38.76426442 | O115: 40.5720413 | P115: 42.4641241 | Q115: 44.44444444 | R115: 41.94320255 | S115: 39.58272541 | T115: 37.35509106 | U115: 9.237055565e-14 | V115: -2.685851541e-12 | W115: 2.540902199e-11 | X115: -5.002181342e-11 | Y115: 8.47559636e-11 | Z115: -1.307812437e-10 | AA115: 1.956772382e-10 | AB115: -3.018582817e-10 | AC115: 4.962866123e-10 | AD115: -8.517925638e-10 | AE115: 1.450893249e-09 | AF115: -2.354701819e-09 | AG115: 3.595160572e-09 | AH115: -5.267623812e-09
B116: Net Funding Required | J116: =J114-J115 -> 0 | K116: =K114-K115 -> 0 | L116: 37.03703704 | M116: 1.727227385 | N116: 1.807776875 | O116: 1.892082801 | P116: 1.980320346 | Q116: -2.501241892 | R116: -2.360477144 | S116: -2.227634347 | T116: -37.35509106 | U116: -9.237055565e-14 | V116: 2.685851541e-12 | W116: -2.540902199e-11 | X116: 5.002181342e-11 | Y116: -8.47559636e-11 | Z116: 1.307812437e-10 | AA116: -1.956772382e-10 | AB116: 3.018582817e-10 | AC116: -4.962866123e-10 | AD116: 8.517925638e-10 | AE116: -1.450893249e-09 | AF116: 2.354701819e-09 | AG116: -3.595160572e-09 | AH116: 5.267623812e-09
B118: Opening Balance | J118: =I121 -> 0 | K118: =J121 -> 0 | L118: 0 | M118: 37.03703704 | N118: 38.76426442 | O118: 40.5720413 | P118: 42.4641241 | Q118: 44.44444444 | R118: 41.94320255 | S118: 39.58272541 | T118: 37.35509106 | U118: 0 | V118: 6.536993169e-13 | W118: -1.051603249e-11 | X118: 2.540902199e-11 | Y118: -5.002181342e-11 | Z118: 8.47559636e-11 | AA118: -1.307812437e-10 | AB118: 1.956772382e-10 | AC118: -3.018582817e-10 | AD118: 4.962866123e-10 | AE118: -8.517925638e-10 | AF118: 1.450893249e-09 | AG118: -2.354701819e-09 | AH118: 3.595160572e-09
B119: Add: DSRA Funded During Construction | J119: =J116*J3 -> 0 | K119: =K116*K3 -> 0 | L119: 37.03703704 | M119: 0 | N119: 0 | O119: 0 | P119: 0 | Q119: 0 | R119: 0 | S119: 0 | T119: 0 | U119: 0 | V119: 0 | W119: 0 | X119: 0 | Y119: 0 | Z119: 0 | AA119: 0 | AB119: 0 | AC119: 0 | AD119: 0 | AE119: 0 | AF119: 0 | AG119: 0 | AH119: 0
B120: Add: DSRA Changes During Operation | J120: =J116*J4 -> 0 | K120: =K116*K4 -> 0 | L120: 0 | M120: 1.727227385 | N120: 1.807776875 | O120: 1.892082801 | P120: 1.980320346 | Q120: -2.501241892 | R120: -2.360477144 | S120: -2.227634347 | T120: -37.35509106 | U120: -9.237055565e-14 | V120: 2.685851541e-12 | W120: 0 | X120: 0 | Y120: 0 | Z120: 0 | AA120: 0 | AB120: 0 | AC120: 0 | AD120: 0 | AE120: 0 | AF120: 0 | AG120: 0 | AH120: 0
B121: Closing Balance | J121: =J118+J119+J120 -> 0 | K121: =K118+K119+K120 -> 0 | L121: 37.03703704 | M121: 38.76426442 | N121: 40.5720413 | O121: 42.4641241 | P121: 44.44444444 | Q121: 41.94320255 | R121: 39.58272541 | S121: 37.35509106 | T121: 0 | U121: -9.237055565e-14 | V121: 3.339550858e-12 | W121: -1.051603249e-11 | X121: 2.540902199e-11 | Y121: -5.002181342e-11 | Z121: 8.47559636e-11 | AA121: -1.307812437e-10 | AB121: 1.956772382e-10 | AC121: -3.018582817e-10 | AD121: 4.962866123e-10 | AE121: -8.517925638e-10 | AF121: 1.450893249e-09 | AG121: -2.354701819e-09 | AH121: 3.595160572e-09
A123: Profit and Loss
C124: IDC Balance Accumulated | J124: =I124+J110 -> 0 | K124: =J124+K110 -> 4.202643522 | L124: 15.13182966 | M124: 15.13182966 | N124: 15.13182966 | O124: 15.13182966 | P124: 15.13182966 | Q124: 15.13182966 | R124: 15.13182966 | S124: 15.13182966 | T124: 15.13182966 | U124: 15.13182966 | V124: 15.13182966 | W124: 15.13182966 | X124: 15.13182966 | Y124: 15.13182966 | Z124: 15.13182966 | AA124: 15.13182966 | AB124: 15.13182966 | AC124: 15.13182966 | AD124: 15.13182966 | AE124: 15.13182966 | AF124: 15.13182966 | AG124: 15.13182966 | AH124: 15.13182966
C125: Depreciation Rate | J125: =J45/J42 -> 0 | K125: =K45/K42 -> 0 | L125: 0 | M125: 0.1 | N125: 0.1 | O125: 0.1 | P125: 0.1 | Q125: 0.1 | R125: 0.1 | S125: 0.1 | T125: 0.1 | U125: 0.1 | V125: 0.1 | W125: 0 | X125: 0 | Y125: 0 | Z125: 0 | AA125: 0 | AB125: 0 | AC125: 0 | AD125: 0 | AE125: 0 | AF125: 0 | AG125: 0 | AH125: 0
C126: Depreciation on IDC | J126: =J124*J125 -> 0 | K126: =K124*K125 -> 0 | L126: 0 | M126: 1.513182966 | N126: 1.513182966 | O126: 1.513182966 | P126: 1.513182966 | Q126: 1.513182966 | R126: 1.513182966 | S126: 1.513182966 | T126: 1.513182966 | U126: 1.513182966 | V126: 1.513182966 | W126: 0 | X126: 0 | Y126: 0 | Z126: 0 | AA126: 0 | AB126: 0 | AC126: 0 | AD126: 0 | AE126: 0 | AF126: 0 | AG126: 0 | AH126: 0
C127: Accumulated IDC Depreciation | J127: =I127+J126 -> 0 | K127: =J127+K126 -> 0 | L127: 0 | M127: 1.513182966 | N127: 3.026365932 | O127: 4.539548898 | P127: 6.052731864 | Q127: 7.56591483 | R127: 9.079097796 | S127: 10.59228076 | T127: 12.10546373 | U127: 13.61864669 | V127: 15.13182966 | W127: 15.13182966 | X127: 15.13182966 | Y127: 15.13182966 | Z127: 15.13182966 | AA127: 15.13182966 | AB127: 15.13182966 | AC127: 15.13182966 | AD127: 15.13182966 | AE127: 15.13182966 | AF127: 15.13182966 | AG127: 15.13182966 | AH127: 15.13182966
C128: Net IDC Balance | J128: =J124-J127 -> 0 | K128: =K124-K127 -> 4.202643522 | L128: 15.13182966 | M128: 13.61864669 | N128: 12.10546373 | O128: 10.59228076 | P128: 9.079097796 | Q128: 7.56591483 | R128: 6.052731864 | S128: 4.539548898 | T128: 3.026365932 | U128: 1.513182966 | V128: 0 | W128: 0 | X128: 0 | Y128: 0 | Z128: 0 | AA128: 0 | AB128: 0 | AC128: 0 | AD128: 0 | AE128: 0 | AF128: 0 | AG128: 0 | AH128: 0
C130: EBITDA | J130: =J38 -> 0 | K130: =K38 -> 0 | L130: 0 | M130: 100 | N130: 104.6635139 | O130: 109.5445115 | P130: 114.6531351 | Q130: 120 | R130: 113.2466469 | S130: 106.8733586 | T130: 100.8587459 | U130: 95.18262316 | V130: 89.82594096 | W130: 0 | X130: 0 | Y130: 0 | Z130: 0 | AA130: 0 | AB130: 0 | AC130: 0 | AD130: 0 | AE130: 0 | AF130: 0 | AG130: 0 | AH130: 0
C131: Less: Depreciation | J131: =J126+J45 -> 0 | K131: =K126+K45 -> 0 | L131: 0 | M131: 71.51318297 | N131: 71.51318297 | O131: 71.51318297 | P131: 71.51318297 | Q131: 71.51318297 | R131: 71.51318297 | S131: 71.51318297 | T131: 71.51318297 | U131: 71.51318297 | V131: 71.51318297 | W131: 0 | X131: 0 | Y131: 0 | Z131: 0 | AA131: 0 | AB131: 0 | AC131: 0 | AD131: 0 | AE131: 0 | AF131: 0 | AG131: 0 | AH131: 0
D132: EBIT | J132: =J130-J131 -> 0 | K132: =K130-K131 -> 0 | L132: 0 | M132: 28.48681703 | N132: 33.15033097 | O132: 38.03132854 | P132: 43.1399521 | Q132: 48.48681703 | R132: 41.73346393 | S132: 35.36017564 | T132: 29.3455629 | U132: 23.66944019 | V132: 18.31275799 | W132: 0 | X132: 0 | Y132: 0 | Z132: 0 | AA132: 0 | AB132: 0 | AC132: 0 | AD132: 0 | AE132: 0 | AF132: 0 | AG132: 0 | AH132: 0
C133: Less: Interest Expense | J133: =J109 -> 0 | K133: =K109 -> 0 | L133: 0 | M133: 21.59431496 | N133: 19.49512459 | O133: 17.17378842 | P133: 15.34572549 | Q133: 12.42325953 | R133: 9.211703102 | S133: 6.075365618 | T133: 3.148704994 | U133: -1.375610736e-14 | V133: -1.436137609e-14 | W133: 0 | X133: 0 | Y133: 0 | Z133: 0 | AA133: 0 | AB133: 0 | AC133: 0 | AD133: 0 | AE133: 0 | AF133: 0 | AG133: 0 | AH133: 0
D134: EBT | J134: =J132-J133 -> 0 | K134: =K132-K133 -> 0 | L134: 0 | M134: 6.892502077 | N134: 13.65520638 | O134: 20.85754011 | P134: 27.79422661 | Q134: 36.0635575 | R134: 32.52176082 | S134: 29.28481002 | T134: 26.19685791 | U134: 23.66944019 | V134: 18.31275799 | W134: 0 | X134: 0 | Y134: 0 | Z134: 0 | AA134: 0 | AB134: 0 | AC134: 0 | AD134: 0 | AE134: 0 | AF134: 0 | AG134: 0 | AH134: 0
C135: Opening NOL | J135: =I138 -> 0 | K135: =J138 -> 0 | L135: 0 | M135: 0 | N135: 0 | O135: 0 | P135: 0 | Q135: 0 | R135: 0 | S135: 0 | T135: 0 | U135: 0 | V135: 0 | W135: 0 | X135: 0 | Y135: 0 | Z135: 0 | AA135: 0 | AB135: 0 | AC135: 0 | AD135: 0 | AE135: 0 | AF135: 0 | AG135: 0 | AH135: 0
C136: Add: Accrued Tax Loss | J136: =MAX(-J134,0) -> 0 | K136: =MAX(-K134,0) -> 0 | L136: 0 | M136: 0 | N136: 0 | O136: 0 | P136: 0 | Q136: 0 | R136: 0 | S136: 0 | T136: 0 | U136: 0 | V136: 0 | W136: 0 | X136: 0 | Y136: 0 | Z136: 0 | AA136: 0 | AB136: 0 | AC136: 0 | AD136: 0 | AE136: 0 | AF136: 0 | AG136: 0 | AH136: 0
C137: Less: NOL Used | J137: =MIN(MAX(J134,0),J135) -> 0 | K137: =MIN(MAX(K134,0),K135) -> 0 | L137: =MIN(MAX(L134,0),L135) -> 0 | M137: 0 | N137: 0 | O137: 0 | P137: 0 | Q137: 0 | R137: 0 | S137: 0 | T137: 0 | U137: 0 | V137: 0 | W137: 0 | X137: 0 | Y137: 0 | Z137: 0 | AA137: 0 | AB137: 0 | AC137: 0 | AD137: 0 | AE137: 0 | AF137: 0 | AG137: 0 | AH137: 0
C138: Closing NOL | J138: =J135+J136-J137 -> 0 | K138: =K135+K136-K137 -> 0 | L138: 0 | M138: 0 | N138: 0 | O138: 0 | P138: 0 | Q138: 0 | R138: 0 | S138: 0 | T138: 0 | U138: 0 | V138: 0 | W138: 0 | X138: 0 | Y138: 0 | Z138: 0 | AA138: 0 | AB138: 0 | AC138: 0 | AD138: 0 | AE138: 0 | AF138: 0 | AG138: 0 | AH138: 0
D139: EBT after NOL | J139: =J134+J136-J137 -> 0 | K139: =K134+K136-K137 -> 0 | L139: 0 | M139: 6.892502077 | N139: 13.65520638 | O139: 20.85754011 | P139: 27.79422661 | Q139: 36.0635575 | R139: 32.52176082 | S139: 29.28481002 | T139: 26.19685791 | U139: 23.66944019 | V139: 18.31275799 | W139: 0 | X139: 0 | Y139: 0 | Z139: 0 | AA139: 0 | AB139: 0 | AC139: 0 | AD139: 0 | AE139: 0 | AF139: 0 | AG139: 0 | AH139: 0
C140: Taxes | F140: =F21 -> 0.21 | J140: =J139*$F$140 -> 0 | K140: =K139*$F$140 -> 0 | L140: 0 | M140: 1.447425436 | N140: 2.86759334 | O140: 4.380083424 | P140: 5.836787588 | Q140: 7.573347075 | R140: 6.829569773 | S140: 6.149810104 | T140: 5.50134016 | U140: 4.97058244 | V140: 3.845679179 | W140: 0 | X140: 0 | Y140: 0 | Z140: 0 | AA140: 0 | AB140: 0 | AC140: 0 | AD140: 0 | AE140: 0 | AF140: 0 | AG140: 0 | AH140: 0
D141: Net Income | J141: =J139-J140 -> 0 | K141: =K139-K140 -> 0 | L141: 0 | M141: 5.445076641 | N141: 10.78761304 | O141: 16.47745669 | P141: 21.95743902 | Q141: 28.49021042 | R141: 25.69219105 | S141: 23.13499992 | T141: 20.69551775 | U141: 18.69885775 | V141: 14.46707881 | W141: 0 | X141: 0 | Y141: 0 | Z141: 0 | AA141: 0 | AB141: 0 | AC141: 0 | AD141: 0 | AE141: 0 | AF141: 0 | AG141: 0 | AH141: 0
A143: Cash Flow Waterfall
C144: EBITDA | J144: =J130 -> 0 | K144: =K130 -> 0 | L144: 0 | M144: 100 | N144: 104.6635139 | O144: 109.5445115 | P144: 114.6531351 | Q144: 120 | R144: 113.2466469 | S144: 106.8733586 | T144: 100.8587459 | U144: 95.18262316 | V144: 89.82594096 | W144: 0 | X144: 0 | Y144: 0 | Z144: 0 | AA144: 0 | AB144: 0 | AC144: 0 | AD144: 0 | AE144: 0 | AF144: 0 | AG144: 0 | AH144: 0
C145: Less: Taxes | J145: =J140 -> 0 | K145: =K140 -> 0 | L145: 0 | M145: 1.447425436 | N145: 2.86759334 | O145: 4.380083424 | P145: 5.836787588 | Q145: 7.573347075 | R145: 6.829569773 | S145: 6.149810104 | T145: 5.50134016 | U145: 4.97058244 | V145: 3.845679179 | W145: 0 | X145: 0 | Y145: 0 | Z145: 0 | AA145: 0 | AB145: 0 | AC145: 0 | AD145: 0 | AE145: 0 | AF145: 0 | AG145: 0 | AH145: 0
D146: CFADS | J146: =J144-J145 -> 0 | K146: =K144-K145 -> 0 | L146: 0 | M146: 98.55257456 | N146: 101.7959206 | O146: 105.1644281 | P146: 108.8163475 | Q146: 112.4266529 | R146: 106.4170771 | S146: 100.7235485 | T146: 95.35740571 | U146: 90.21204072 | V146: 85.98026178 | W146: 0 | X146: 0 | Y146: 0 | Z146: 0 | AA146: 0 | AB146: 0 | AC146: 0 | AD146: 0 | AE146: 0 | AF146: 0 | AG146: 0 | AH146: 0
C147: Less: Interest Expense | J147: =J133 -> 0 | K147: =K133 -> 0 | L147: 0 | M147: 21.59431496 | N147: 19.49512459 | O147: 17.17378842 | P147: 15.34572549 | Q147: 12.42325953 | R147: 9.211703102 | S147: 6.075365618 | T147: 3.148704994 | U147: -1.375610736e-14 | V147: -1.436137609e-14 | W147: 0 | X147: 0 | Y147: 0 | Z147: 0 | AA147: 0 | AB147: 0 | AC147: 0 | AD147: 0 | AE147: 0 | AF147: 0 | AG147: 0 | AH147: 0
C148: Less: Repayment | J148: =J104 -> 0 | K148: =K104 -> 0 | L148: 0 | M148: 52.47975912 | N148: 58.03340425 | O148: 63.97029417 | P148: 69.58252271 | Q148: 76.46562935 | R148: 74.674702 | S148: 73.0900852 | T148: 71.56147713 | U148: 1.375610736e-14 | V148: 1.436137609e-14 | W148: 0 | X148: 0 | Y148: 0 | Z148: 0 | AA148: 0 | AB148: 0 | AC148: 0 | AD148: 0 | AE148: 0 | AF148: 0 | AG148: 0 | AH148: 0
D149: Net Cash Flow | J149: =J146-J147-J148 -> 0 | K149: =K146-K147-K148 -> 0 | L149: 0 | M149: 24.47850049 | N149: 24.26739176 | O149: 24.02034548 | P149: 23.88809928 | Q149: 23.53776404 | R149: 22.53067201 | S149: 21.55809768 | T149: 20.64722358 | U149: 90.21204072 | V149: 85.98026178 | W149: 0 | X149: 0 | Y149: 0 | Z149: 0 | AA149: 0 | AB149: 0 | AC149: 0 | AD149: 0 | AE149: 0 | AF149: 0 | AG149: 0 | AH149: 0
C150: Less: Change in DSRA | J150: =J120 -> 0 | K150: =K120 -> 0 | L150: 0 | M150: 1.727227385 | N150: 1.807776875 | O150: 1.892082801 | P150: 1.980320346 | Q150: -2.501241892 | R150: -2.360477144 | S150: -2.227634347 | T150: -37.35509106 | U150: -9.237055565e-14 | V150: 2.685851541e-12 | W150: 0 | X150: 0 | Y150: 0 | Z150: 0 | AA150: 0 | AB150: 0 | AC150: 0 | AD150: 0 | AE150: 0 | AF150: 0 | AG150: 0 | AH150: 0
C151: Less: Cash Flow Sweep
C152: Net Dividends | J152: =J149-J150-J151 -> 0 | K152: =K149-K150-K151 -> 0 | L152: 0 | M152: 22.7512731 | N152: 22.45961488 | O152: 22.12826268 | P152: 21.90777893 | Q152: 26.03900593 | R152: 24.89114916 | S152: 23.78573203 | T152: 58.00231464 | U152: 90.21204072 | V152: 85.98026178 | W152: 0 | X152: 0 | Y152: 0 | Z152: 0 | AA152: 0 | AB152: 0 | AC152: 0 | AD152: 0 | AE152: 0 | AF152: 0 | AG152: 0 | AH152: 0
A154: Balance Sheet
B155: Assets
C156: DSRA | J156: =J121 -> 0 | K156: =K121 -> 0 | L156: 37.03703704 | M156: 38.76426442 | N156: 40.5720413 | O156: 42.4641241 | P156: 44.44444444 | Q156: 41.94320255 | R156: 39.58272541 | S156: 37.35509106 | T156: 0 | U156: -9.237055565e-14 | V156: 3.339550858e-12 | W156: -1.051603249e-11 | X156: 2.540902199e-11 | Y156: -5.002181342e-11 | Z156: 8.47559636e-11 | AA156: -1.307812437e-10 | AB156: 1.956772382e-10 | AC156: -3.018582817e-10 | AD156: 4.962866123e-10 | AE156: -8.517925638e-10 | AF156: 1.450893249e-09 | AG156: -2.354701819e-09 | AH156: 3.595160572e-09
C157: Gross Plant | J157: =J42 -> 233.3333333 | K157: =K42 -> 466.6666667 | L157: 700 | M157: 700 | N157: 700 | O157: 700 | P157: 700 | Q157: 700 | R157: 700 | S157: 700 | T157: 700 | U157: 700 | V157: 700 | W157: 700 | X157: 700 | Y157: 700 | Z157: 700 | AA157: 700 | AB157: 700 | AC157: 700 | AD157: 700 | AE157: 700 | AF157: 700 | AG157: 700 | AH157: 700
C158: Less: Accumulated Depreciation | J158: =-J43 -> 0 | K158: =-K43 -> 0 | L158: 0 | M158: -70 | N158: -140 | O158: -210 | P158: -280 | Q158: -350 | R158: -420 | S158: -490 | T158: -560 | U158: -630 | V158: -700 | W158: -700 | X158: -700 | Y158: -700 | Z158: -700 | AA158: -700 | AB158: -700 | AC158: -700 | AD158: -700 | AE158: -700 | AF158: -700 | AG158: -700 | AH158: -700
C159: IDC Net Plant | J159: =J128 -> 0 | K159: =K128 -> 4.202643522 | L159: 15.13182966 | M159: 13.61864669 | N159: 12.10546373 | O159: 10.59228076 | P159: 9.079097796 | Q159: 7.56591483 | R159: 6.052731864 | S159: 4.539548898 | T159: 3.026365932 | U159: 1.513182966 | V159: 0 | W159: 0 | X159: 0 | Y159: 0 | Z159: 0 | AA159: 0 | AB159: 0 | AC159: 0 | AD159: 0 | AE159: 0 | AF159: 0 | AG159: 0 | AH159: 0
D160: Total Assets | J160: =SUM(J156:J159) -> 233.3333333 | K160: =SUM(K156:K159) -> 470.8693102 | L160: 752.1688667 | M160: 682.3829111 | N160: 612.677505 | O160: 543.0564049 | P160: 473.5235422 | Q160: 399.5091174 | R160: 325.6354573 | S160: 251.89464 | T160: 143.0263659 | U160: 71.51318297 | V160: 3.296918294e-12 | W160: -1.045918907e-11 | X160: 2.546585165e-11 | Y160: -5.00222086e-11 | Z160: 8.481038094e-11 | AA160: -1.307398634e-10 | AB160: 1.956550477e-10 | AC160: -3.018385542e-10 | AD160: 4.962430467e-10 | AE160: -8.517417882e-10 | AF160: 1.450871423e-09 | AG160: -2.354681783e-09 | AH160: 3.595118869e-09
B161: Equity Balance
C162: Opening Balance | J162: =I166 -> 0 | K162: =J166 -> 113.2578041 | L162: 158.6068491 | M162: 212.3109928 | N162: 195.0047963 | O162: 183.3327945 | P162: 177.6819885 | Q162: 177.7316486 | R162: 180.1828531 | S162: 180.9838949 | T162: 180.3331628 | U162: 143.0263659 | V162: 71.51318297 | W162: -1.033129138e-11 | X162: 2.562217105e-11 | Y162: -4.98658892e-11 | Z162: 8.486722436e-11 | AA162: -1.306545983e-10 | AB162: 1.958539997e-10 | AC162: -3.019096084e-10 | AD162: 4.952767085e-10 | AE162: -8.611816441e-10 | AF162: 1.448739795e-09 | AG162: -2.380830963e-09 | AH162: 3.591608788e-09
C163: Add: Funding | J163: =J97 -> 113.2578041 | K163: =K97 -> 45.34904494 | L163: 53.70414368 | M163: 0 | N163: 0 | O163: 0 | P163: 0 | Q163: 0 | R163: 0 | S163: 0 | T163: 0 | U163: 0 | V163: 0 | W163: 0 | X163: 0 | Y163: 0 | Z163: 0 | AA163: 0 | AB163: 0 | AC163: 0 | AD163: 0 | AE163: -5.174008888e-13 | AF163: 0 | AG163: -1.276255526e-12 | AH163: 0
C164: Add: Net Income | J164: =J141 -> 0 | K164: =K141 -> 0 | L164: 0 | M164: 5.445076641 | N164: 10.78761304 | O164: 16.47745669 | P164: 21.95743902 | Q164: 28.49021042 | R164: 25.69219105 | S164: 23.13499992 | T164: 20.69551775 | U164: 18.69885775 | V164: 14.46707881 | W164: 0 | X164: 0 | Y164: 0 | Z164: 0 | AA164: 0 | AB164: 0 | AC164: 0 | AD164: 0 | AE164: 0 | AF164: 0 | AG164: 0 | AH164: 0
C165: Less: Dividends | J165: =J152 -> 0 | K165: =K152 -> 0 | L165: 0 | M165: 22.7512731 | N165: 22.45961488 | O165: 22.12826268 | P165: 21.90777893 | Q165: 26.03900593 | R165: 24.89114916 | S165: 23.78573203 | T165: 58.00231464 | U165: 90.21204072 | V165: 85.98026178 | W165: 0 | X165: 0 | Y165: 0 | Z165: 0 | AA165: 0 | AB165: 0 | AC165: 0 | AD165: 0 | AE165: 0 | AF165: 0 | AG165: 0 | AH165: 0
C166: Closing Balance | J166: =J162+J163+J164-J165 -> 113.2578041 | K166: =K162+K163+K164-K165 -> 158.6068491 | L166: 212.3109928 | M166: 195.0047963 | N166: 183.3327945 | O166: 177.6819885 | P166: 177.7316486 | Q166: 180.1828531 | R166: 180.9838949 | S166: 180.3331628 | T166: 143.0263659 | U166: 71.51318297 | V166: 3.538502824e-12 | W166: -1.033129138e-11 | X166: 2.562217105e-11 | Y166: -4.98658892e-11 | Z166: 8.486722436e-11 | AA166: -1.306545983e-10 | AB166: 1.958539997e-10 | AC166: -3.019096084e-10 | AD166: 4.952767085e-10 | AE166: -8.61699045e-10 | AF166: 1.448739795e-09 | AG166: -2.382107219e-09 | AH166: 3.591608788e-09
C167: Debt Balance | J167: =J105 -> 120.0755292 | K167: =K105 -> 312.2624611 | L167: 539.8578739 | M167: 487.3781148 | N167: 429.3447106 | O167: 365.3744164 | P167: 295.7918937 | Q167: 219.3262643 | R167: 144.6515623 | S167: 71.56147713 | T167: -3.126388037e-13 | U167: -3.263949111e-13 | V167: -3.407562872e-13 | W167: -3.407562872e-13 | X167: -3.407562872e-13 | Y167: -3.407562872e-13 | Z167: -3.40728775e-13 | AA167: -3.392856343e-13 | AB167: -3.150278189e-13 | AC167: -1.495675406e-13 | AD167: 8.626185126e-13 | AE167: 9.994616201e-12 | AF167: 2.035341224e-12 | AG167: 2.759807719e-11 | AH167: 3.43036439e-12
D168: Total Liabilities and Capital | J168: =J166+J167 -> 233.3333333 | K168: =K166+K167 -> 470.8693102 | L168: 752.1688667 | M168: 682.3829111 | N168: 612.677505 | O168: 543.0564049 | P168: 473.5235422 | Q168: 399.5091174 | R168: 325.6354573 | S168: 251.89464 | T168: 143.0263659 | U168: 71.51318297 | V168: 3.197746537e-12 | W168: -1.067204767e-11 | X168: 2.528141476e-11 | Y168: -5.020664548e-11 | Z168: 8.452649558e-11 | AA168: -1.309938839e-10 | AB168: 1.955389719e-10 | AC168: -3.02059176e-10 | AD168: 4.96139327e-10 | AE168: -8.517044288e-10 | AF168: 1.450775136e-09 | AG168: -2.354509142e-09 | AH168: 3.595039153e-09
D170: Difference | J170: =J168-J160 -> 0 | K170: =K168-K160 -> 0 | L170: 0 | M170: 0 | N170: 0 | O170: 0 | P170: 0 | Q170: 0 | R170: 0 | S170: 0 | T170: 0 | U170: -1.421085472e-13 | V170: -9.917175703e-14 | W170: -2.128585948e-13 | X170: -1.844368853e-13 | Y170: -1.844368853e-13 | Z170: -2.838853561e-13 | AA170: -2.54020506e-13 | AB170: -1.160758529e-13 | AC170: -2.206218142e-13 | AD170: -1.037196081e-13 | AE170: 3.735939287e-14 | AF170: -9.628698282e-14 | AG170: 1.726412674e-13 | AH170: -7.971672438e-14
A171: Outputs
B172: CFADS | J172: =J146 -> 0 | K172: =K146 -> 0 | L172: 0 | M172: 98.55257456 | N172: 101.7959206 | O172: 105.1644281 | P172: 108.8163475 | Q172: 112.4266529 | R172: 106.4170771 | S172: 100.7235485 | T172: 95.35740571 | U172: 90.21204072 | V172: 85.98026178 | W172: 0 | X172: 0 | Y172: 0 | Z172: 0 | AA172: 0 | AB172: 0 | AC172: 0 | AD172: 0 | AE172: 0 | AF172: 0 | AG172: 0 | AH172: 0
B173: Debt Service | J173: =J147+J148 -> 0 | K173: =K147+K148 -> 0 | L173: 0 | M173: 74.07407407 | N173: 77.52852884 | O173: 81.14408259 | P173: 84.9282482 | Q173: 88.88888889 | R173: 83.88640511 | S173: 79.16545082 | T173: 74.71018212 | U173: 0 | V173: 0 | W173: 0 | X173: 0 | Y173: 0 | Z173: 0 | AA173: 0 | AB173: 0 | AC173: 0 | AD173: 0 | AE173: 0 | AF173: 0 | AG173: 0 | AH173: 0
C174: DSCR | J174: =IF(J173,J172/J173) -> FALSE | K174: =IF(K173,K172/K173) -> FALSE | L174: FALSE | M174: 1.330459757 | N174: 1.313012411 | O174: 1.296020914 | P174: 1.281273896 | Q174: 1.264799845 | R174: 1.268585499 | S174: 1.272316995 | T174: 1.276364252 | U174: FALSE | V174: FALSE | W174: FALSE | X174: FALSE | Y174: FALSE | Z174: FALSE | AA174: FALSE | AB174: FALSE | AC174: FALSE | AD174: FALSE | AE174: FALSE | AF174: FALSE | AG174: FALSE | AH174: FALSE
B176: Equity Cash Flow | J176: =-J163+J165 -> -113.2578041 | K176: =-K163+K165 -> -45.34904494 | L176: -53.70414368 | M176: 22.7512731 | N176: 22.45961488 | O176: 22.12826268 | P176: 21.90777893 | Q176: 26.03900593 | R176: 24.89114916 | S176: 23.78573203 | T176: 58.00231464 | U176: 90.21204072 | V176: 85.98026178 | W176: 0 | X176: 0 | Y176: 0 | Z176: 0 | AA176: 0 | AB176: 0 | AC176: 0 | AD176: 0 | AE176: 5.174008888e-13 | AF176: 0 | AG176: 1.276255526e-12 | AH176: 0
B177: Equity IRR | J177: =IRR(176:176) -> 0.08165576436
